Cogmind - Beta 17 @@@ ROGUE MODE // 2026.07.31 @ 08:44:47 Player: Clog Result: Destroyed by B-75 Beast via exploding Fusion Modulator Performance ------------- Evolutions (4) 2000 Regions Visited (7) 1400 Robots Destroyed (51) 255 Value Destroyed (1361) 1361 Prototype IDs (28) 560 Alien Tech Used (0) 0 Bonus (214) 214 TOTAL SCORE: 5790 Bonus ------- Follower Combat Kills 214 Cogmind --------- Core Integrity 0/850 Matter 226/300 Energy 100/100 System Corruption 2% Temperature Cool (12) Movement Core (50) Location -6/Factory Parts ------- > --- POWER (1) -------- (None) > --- PROPULSION (4) --- (None) > --- UTILITY (7) ------ (None) > --- WEAPON (3) ------- Power Maul > --- INVENTORY (5) ---- Improved Medium Treads Improved Light Armor Plating Antimatter Cannon Mining Claw Peak State ------------ > --- POWER ------------ Micro Nuclear Core > --- PROPULSION ------- Aluminum Leg Aluminum Leg Improved Aluminum Leg Improved Carbon-fiber Leg > --- UTILITY ---------- Large Storage Unit Seismic Detector Kinecellerator Hardened Medium Armor Plating Hacking Suite > --- WEAPON ----------- Mini Assault Cannon Mini Assault Cannon > --- INVENTORY -------- Light Ion Engine Light Nuclear Core Aerolev Unit Improved VTOL Module Improved VTOL Module Improved VTOL Module Improved VTOL Module Improved VTOL Module Advanced ECM Suite Light Armor Plating Firepult Mini Assault Cannon Rocket Launcher Mining Claw [Rating: 40] Favorites ----------- Power Ion Engine Engine Ion Engine Power Core Micro Nuclear Core Propulsion Light Treads Treads Light Treads Leg Aluminum Leg Hover Unit Aerolev Unit Flight Unit Improved VTOL Module Utility Seismic Detector Device Seismic Detector Storage High-capacity Storage Unit Hackware Hacking Suite Protection Hardened Medium Armor Plating Weapon Heavy Assault Rifle Energy Cannon Firepult Ballistic Gun Heavy Assault Rifle Ballistic Cannon Mini Assault Cannon Launcher Advanced EMP Blaster Impact Weapon Power Maul Slashing Weapon Mining Claw Build | -11 -10 -10 -10 -9 -8 -7 -6 ------- Run | Yrd Mat Min Exi Min Mat Fac Fac Slots Evolved 8 | . . . . . 4 2 2 Power . | . . . . . . . . Propulsion 2 | . . . . . 1 1 . Utility 5 | . . . . . 3 1 1 Weapon 1 | . . . . . . . 1 Parts Attached 39 | 7 1 1 . 1 14 11 4 Power 4 | 1 . . . . 1 2 . Engine 2 | 1 . . . . 1 . . Core 2 | . . . . . . 2 . Reactor . | . . . . . . . . Propulsion 12 | 2 . . . . 4 6 . Treads 2 | 2 . . . . . . . Leg 4 | . . . . . 3 1 . Wheel . | . . . . . . . . Hover 1 | . . . . . . 1 . Flight 5 | . . . . . 1 4 . Utility 9 | 2 1 . . . 4 2 . Device 3 | 1 . . . . 1 1 . Storage 3 | 1 1 . . . 1 . . Processor . | . . . . . . . . Hackware 1 | . . . . . 1 . . Protection 2 | . . . . . 1 1 . Artifact . | . . . . . . . . Weapon 14 | 2 . 1 . 1 5 1 4 Energy Gun . | . . . . . . . . Energy Cannon 1 | . . . . . . . 1 Ballistic Gun 7 | 2 . 1 . 1 2 . 1 Ballistic Cannon 3 | . . . . . 2 . 1 Launcher 1 | . . . . . 1 . . Special Weapon . | . . . . . . . . Impact Weapon 1 | . . . . . . . 1 Slashing Weapon 1 | . . . . . . 1 . Piercing Weapon . | . . . . . . . . Special Melee Weapon . | . . . . . . . . Unidentified Prototypes 5 | . . . . . 3 1 1 Parts Lost 19 | . . 1 . 3 . 11 4 Power 2 | . . . . . . 1 1 Propulsion 9 | . . . . 2 . 6 1 Utility 5 | . . . . . . 4 1 Weapon 3 | . . 1 . 1 . . 1 Highest Loss Streak 8 | . . 1 . 2 . 8 2 To Critical Strikes . | . . . . . . . . Average Backups 10 | 2 4 7 7 12 13 12 3 Power 1 | . 1 1 1 2 2 1 . Propulsion 1 | . . . . . 2 5 . Utility . | . . . . . 1 1 1 Weapon 6 | 1 3 6 6 8 7 3 2 Tool/Special . | . . . . . . . . Unused Backups 19 | . . . 1 . 14 4 . Power 2 | . . . . . 1 1 . Propulsion 5 | . . . . . 5 . . Utility 3 | . . . 1 . 1 1 . Weapon 9 | . . . . . 7 2 . Tool/Special . | . . . . . . . . Average Slot Usage (%) 84 | . 100 100 100 76 77 82 8 Engine 11 | . 14 14 14 14 9 3 . Treads 13 | . 28 28 28 5 . . . Leg 5 | . . . . . 24 22 . Device 13 | . 14 14 14 14 11 12 1 Storage 12 | . 14 14 14 14 9 6 . Hackware 1 | . . . . . 4 6 . Ballistic Gun 22 | . 28 28 28 28 13 . . Ballistic Cannon 2 | . . . . . 4 13 1 Peak Build Rating 40 | 7 8 9 11 12 35 40 26 Average Rating 13 | 4 7 8 10 11 20 35 10 On Entrance 11 | . 7 8 9 11 12 32 10 Avg Prop Armor Cover (%) 9 | . . . . . . 8 10 Naked Turns 36 | . . . . . . . 36 Heaviest Build 52 | 15 50 51 51 52 52 47 28 Greatest Support 51 | 40 40 40 40 40 33 51 5 Greatest Overweight (x) 17 | 1 1 1 1 17 3 1 9 Average Overweight (x) 1 | . . 1 1 8 . . . Largest Inventory Capacity 20 | 8 20 20 20 20 20 15 5 Average Capacity 18 | 7 16 20 20 20 16 14 5 Most Carried 19 | 7 7 8 11 16 19 15 5 Average Carried 10 | 2 4 7 8 13 14 13 4 Final Capacity 20 | 8 20 20 20 20 15 5 5 Final Carried 16 | 3 7 7 9 16 13 5 4 Class Distribution -------------------- 79% | Mutant 19% | Scavenger-Mutant Dominant Class ---------------- Mutant | -10/Materials Mutant | -10/Mines Mutant | -10/Exiles Mutant | -9/Mines Scavenger-Mutant | -8/Materials Scavenger-Mutant | -7/Factory Mutant | -6/Factory Resources | -11 -10 -10 -10 -9 -8 -7 -6 ----------- Run | Yrd Mat Min Exi Min Mat Fac Fac Matter Collected 1447 | 294 21 144 . 114 304 393 177 Remotely . | . . . . . . . . Salvage Created 1548 | 145 21 225 . 125 240 499 293 Parts 85 | 11 1 22 . 5 18 22 6 Haulers Intercepted 5 | . . . . . 2 3 . Recyclers Shooed 1 | . . 1 . . . . . Parts Field Recycled . | . . . . . . . . Retrieved Matter . | . . . . . . . . Parts Self-Destructed . | . . . . . . . . Prevented . | . . . . . . . . Parts Restored . | . . . . . . . . Kills | -11 -10 -10 -10 -9 -8 -7 -6 ------- Run | Yrd Mat Min Exi Min Mat Fac Fac Combat Hostiles Destroyed 32 | . . 11 . 3 2 12 4 Guns 16 | . . 11 . 3 2 . . Cannons 12 | . . . . . . 12 . AOE 2 | . . . . . . . 2 Classes Destroyed 12 | 2 1 2 . 1 3 3 . Worker 2 | . . . . . . 1 1 Builder 4 | . . . . . 1 . 3 Tunneler 3 | 3 . . . . . . . Hauler 5 | . . . . . 2 3 . Recycler 1 | 1 . . . . . . . Watcher 4 | . 1 . . . . 3 . Swarmer 9 | . . 9 . . . . . Grunt 18 | . . 2 . 2 . 10 4 Duelist 1 | . . . . 1 . . . Sentry 2 | . . . . . 2 . . Hunter 1 | . . . . . . 1 . Programmer 1 | . . . . . . 1 . Best Kill Streak 8 | 4 1 3 . 3 2 4 8 Combat Bots Only 4 | . . 3 . 3 1 3 4 Max Kills in Single Turn 2 | 1 1 1 . 1 1 1 2 Gunslinging . | . . . . . . . . Exploded 1 | . . . . . . . 1 Melee . | . . . . . . . . Uniques/NPCs Destroyed . | . . . . . . . . Combat | -11 -10 -10 -10 -9 -8 -7 -6 -------- Run | Yrd Mat Min Exi Min Mat Fac Fac Hostile Shots Fired 352 | . . 77 . 27 21 103 124 Missed 112 | . . 23 . 8 7 28 46 Hits 240 | . . 54 . 19 14 75 78 Melee 2 | . . . . 2 . . . Projectile 238 | . . 54 . 17 14 75 78 AOE 1 | . . . . . . . 1 Critical Strikes 9 | . . . . . 1 7 1 Part Disruptions 1 | . . . . . . 1 . Damage Taken 3813 | . . 507 . 266 241 1329 1470 Core 1408 | . . 39 . 39 66 328 936 Absorbed by Shields . | . . . . . . . . Core Remaining (%) 77 | 100 . . . 68 88 53 . Volleys Fired 131 | 4 2 31 . 12 17 50 15 Largest 2 | 2 2 2 . 2 2 2 2 Hottest 283 | 40 40 43 . 46 80 80 283 Shots Fired 246 | 8 4 61 . 23 34 100 16 Gun 121 | 8 4 61 . 23 22 . 3 Cannon 125 | . . . . . 12 100 13 Launcher . | . . . . . . . . Special . | . . . . . . . . Kinetic 242 | 8 4 61 . 23 34 100 12 Thermal 4 | . . . . . . . 4 Explosive . | . . . . . . . . Electromagnetic . | . . . . . . . . Robot Hit Streak 11 | 4 3 4 . 9 3 11 7 Robot Miss Streak 7 | . 1 7 . 1 4 7 2 Penetration Max . | . . . . . . . . Secondary Targets 3 | . . 3 . . . . . Max Gunslinging Chain 1 | . . 1 . . . . . Shots Hit Robots 131 | 4 3 25 . 17 16 53 13 Core Hits 82 | 4 2 14 . 7 11 24 20 Critical Kills . | . . . . . . . . Critical Parts Destroyed . | . . . . . . . . Critical Strikes 4 | . . . . . . 3 1 Blast 4 | . . . . . . 3 1 Melee Attacks 2 | . . . . . . . 2 Impact 2 | . . . . . . . 2 Slashing . | . . . . . . . . Piercing . | . . . . . . . . Sneak Attacks . | . . . . . . . . Combat Hostiles . | . . . . . . . . Follow-up Attacks . | . . . . . . . . Damage Inflicted 3769 | 49 37 353 . 297 327 1713 993 Guns 928 | 49 37 346 . 296 175 . 25 Cannons 2277 | . . . . . 152 1709 416 Explosions 446 | . . . . . . . 446 Melee . | . . . . . . . . Ramming 118 | . . 7 . 1 . 4 106 Kinetic 3084 | 49 37 346 . 296 327 1709 320 Thermal 567 | . . . . . . . 567 Explosive . | . . . . . . . . Electromagnetic . | . . . . . . . . Impact . | . . . . . . . . Slashing . | . . . . . . . . Piercing . | . . . . . . . . Highest Corruption 2 | . . . . . . 2 2 Average Corruption 1 | . . . . . . 1 1 Corruption Purged . | . . . . . . . . Corruption Blocked . | . . . . . . . . Effects 3 | . . . . . . . 3 Data Loss (minor) 2 | . . . . . . . 2 Data Loss (major) 1 | . . . . . . . 1 Overload Shots . | . . . . . . . . Overflow Damage 75 | . . . . . 1 42 32 Projectiles 64 | . . . . . 1 42 21 Explosions 11 | . . . . . . . 11 Melee . | . . . . . . . . Knockbacks 18 | . . . . . 4 11 3 Impact . | . . . . . . . . Kinetic 14 | . . . . . 2 10 2 Secondary 4 | . . . . . 2 1 1 Self-Inflicted Damage 238 | . . . . . . . 238 Shots 13 | . . . . . . . 13 Rammed 39 | . . 2 . 1 . . 36 Targets Rammed 41 | . . 2 . 1 . 2 36 Kicked 2 | . . . . . . 2 . Crushed . | . . . . . . . . Highest Temperature 392 | . . 2 . 7 34 349 392 Average Temperature 107 | . . 2 . 3 11 114 179 Received Heat Transfer 1329 | . . 96 . 102 126 576 429 Effects 2 | . . . . . . 1 1 Energy Bleed 1 | . . . . . . 1 . Short Circuit 1 | . . . . . . . 1 Siege Activations . | . . . . . . . . Martial Activations . | . . . . . . . . Shielding Activations . | . . . . . . . . Robots Disrupted . | . . . . . . . . Combat Hostiles . | . . . . . . . . Robots Corrupted . | . . . . . . . . Combat Hostiles . | . . . . . . . . Parts Fried . | . . . . . . . . Impact Corruptions . | . . . . . . . . Robots Melted 3 | . . . . . . . 3 Combat Hostiles 2 | . . . . . . . 2 Parts Melted 6 | . . . . . . . 6 Heat Transferred 2800 | . . . . . . . 2800 Parts Sabotaged . | . . . . . . . . Parts Stolen . | . . . . . . . . Parts Stripped . | . . . . . . . . Power Chain Reactions . | . . . . . . . . Alert | -11 -10 -10 -10 -9 -8 -7 -6 ------- Run | Yrd Mat Min Exi Min Mat Fac Fac Maximum Alert Level . | . . . . . . . . Low Security (%) 100 | 100 100 100 . 100 100 100 100 Level 1 . | . . . . . . . . Level 2 . | . . . . . . . . Level 3 . | . . . . . . . . Level 4 . | . . . . . . . . Level 5 . | . . . . . . . . High Security . | . . . . . . . . Max Security . | . . . . . . . . Peak Influence 161 | 10 11 125 . 60 161 139 98 Initial 60 | . 6 . . . . 60 33 Average 22 | 2 . 28 . 2 33 60 39 Influence Increases 1275 | 20 18 300 . 70 326 411 130 Destroy 0b10 Robot/C 760 | . . 220 . 60 160 240 80 Destroy 0b10 Robot/NC 115 | 20 5 . . . 35 35 20 Destroy Leader 168 | . 2 40 . 10 56 50 10 Allied During Kill 29 | . . . . . 27 2 . Successful Hack 21 | . 11 . . . 10 . . Disable Machine 75 | . . 30 . . 15 30 . Destroy Structure 47 | . . 10 . . 8 24 5 Partial Spotted 15 | . . . . . . . 15 Lose Combat Pursuer 45 | . . . . . 15 30 . Influence Decreases 1215 | 10 27 238 63 70 193 475 139 Entered New Map 177 | . 4 1 63 . . 73 36 Time Decay 845 | 10 23 227 . 70 153 292 70 Lost Part 153 | . . 10 . . . 110 33 Lost Ally 40 | . . . . . 40 . . Squads Dispatched 12 | . . . . . 2 6 4 Investigation 3 | . . . . . 1 1 1 Extermination 1 | . . . . . . 1 . Reinforcement 8 | . . . . . 1 4 3 Assault . | . . . . . . . . Garrison . | . . . . . . . . Intercept . | . . . . . . . . Searches Triggered . | . . . . . . . . Construction Impeded 2 | . . . . . 1 . 1 Haulers Reinforced 4 | . . . . . . 3 1 Active Scanning Responses . | . . . . . . . . Cargo Convoy Interrupts . | . . . . . . . . Stealth | -11 -10 -10 -10 -9 -8 -7 -6 --------- Run | Yrd Mat Min Exi Min Mat Fac Fac Distress Signals 4 | . . . . . 1 2 1 Communications Jammed . | . . . . . . . . Distress Signals . | . . . . . . . . Times Spotted 68 | . . 12 . 5 14 25 12 Peak Tracking Total 6 | . . 3 . 3 3 6 6 Tactical Retreats 2 | . . . . . 1 1 . Traps | -11 -10 -10 -10 -9 -8 -7 -6 ------- Run | Yrd Mat Min Exi Min Mat Fac Fac Traps Triggered . | . . . . . . . . Indirectly . | . . . . . . . . Trap Hack Attempts . | . . . . . . . . Triggered . | . . . . . . . . Disarmed . | . . . . . . . . Reprogrammed . | . . . . . . . . Reused . | . . . . . . . . Traps Extracted . | . . . . . . . . Installed . | . . . . . . . . Triggered . | . . . . . . . . Machines | -11 -10 -10 -10 -9 -8 -7 -6 ---------- Run | Yrd Mat Min Exi Min Mat Fac Fac Machines Disabled 5 | . . 2 . . 1 2 . Max in Single Turn 1 | . . 1 . . . 1 . Machines Repaired . | . . . . . . . . Machines Dismantled . | . . . . . . . . Machines Sabotaged . | . . . . . . . . Overloaded Fab Kills . | . . . . . . . . Hacking | -11 -10 -10 -10 -9 -8 -7 -6 --------- Run | Yrd Mat Min Exi Min Mat Fac Fac Machines Accessed 16 | . 1 1 5 2 2 3 2 Terminals 7 | . 1 1 . 1 1 1 2 Fabricators 2 | . . . . . . 2 . Repair Stations . | . . . . . . . . Recycling Units . | . . . . . . . . Scanalyzers 1 | . . . . . 1 . . Garrison Access . | . . . . . . . . Total Hacks 68 | . 5 2 45 4 5 5 2 Successful 54 | . 3 1 45 2 2 1 . Failed 14 | . 2 1 . 2 3 4 2 Catastrophic 3 | . . . . . 1 1 1 Database Lockouts . | . . . . . . . . Manual 15 | . 6 1 1 . 2 2 3 Terminals 16 | . 5 2 . 3 2 2 2 Fabricators 3 | . . . . . . 3 . Repair Stations . | . . . . . . . . Recycling Units . | . . . . . . . . Scanalyzers 3 | . . . . . 3 . . Garrison Access . | . . . . . . . . Terminal Hacks 50 | . 1 1 45 2 1 . . Record 45 | . . 1 44 . . . . Open Door 1 | . . . . 1 . . . Hauler Manifests 2 | . 1 . . . 1 . . Zone Layout 1 | . . . . 1 . . . Proto ID Catalog 1 | . . . 1 . . . . Fabricator Hacks 1 | . . . . . . 1 . Network Status 1 | . . . . . . 1 . Repair Station Hacks . | . . . . . . . . Recycling Unit Hacks . | . . . . . . . . Scanalyzer 1 | . . . . . 1 . . Retrieve Study 1 | . . . . . 1 . . Garrison Access Hacks . | . . . . . . . . Unauthorized Hacks 2 | . 2 . . . . . . Terminals 2 | . 2 . . . . . . Botnet 1 | . 1 . . . . . . Operators 1 | . 1 . . . . . . Fabricators . | . . . . . . . . Repair Stations . | . . . . . . . . Recycling Units . | . . . . . . . . Scanalyzers . | . . . . . . . . Garrison Access . | . . . . . . . . Data Cores Recovered 1 | . . . . . 1 . . Used 1 | . . . . . 1 . . Hacking Detections 10 | . 1 1 . 1 2 3 2 Full Trace Events 2 | . . . . . . 1 1 Feedback Events . | . . . . . . . . Feedback Blocked . | . . . . . . . . Robot Schematics Acquired . | . . . . . . . . Robots Built . | . . . . . . . . Authchips . | . . . . . . . . Time . | . . . . . . . . Total Robot Build Rating . | . . . . . . . . Part Schematics Acquired . | . . . . . . . . Parts Built . | . . . . . . . . Authchips . | . . . . . . . . Time . | . . . . . . . . Total Part Build Rating . | . . . . . . . . Part Studies Acquired 1 | . . . . . 1 . . Parts Repaired . | . . . . . . . . Time . | . . . . . . . . Parts Recycled . | . . . . . . . . Recycled Matter . | . . . . . . . . Retrieved Matter . | . . . . . . . . Retrieved Components . | . . . . . . . . Parts Scanalyzed . | . . . . . . . . Part Schematics Acquired . | . . . . . . . . Parts Damaged . | . . . . . . . . Bothacking | -11 -10 -10 -10 -9 -8 -7 -6 ------------ Run | Yrd Mat Min Exi Min Mat Fac Fac Used RIF Installer . | . . . . . . . . Robots Hacked . | . . . . . . . . Non-combat . | . . . . . . . . Combat . | . . . . . . . . Robot Hacks Applied . | . . . . . . . . Relay Couplers Released . | . . . . . . . . Fabnet Peak Effective % . | . . . . . . . . Robots Rewired . | . . . . . . . . Allies Hacked . | . . . . . . . . Hacks Repelled . | . . . . . . . . Allies | -11 -10 -10 -10 -9 -8 -7 -6 -------- Run | Yrd Mat Min Exi Min Mat Fac Fac Total Allies 3 | . . . . 3 . . . Largest Group 3 | . . . . 3 3 1 . Highest-Rated Group 40 | . . . . 40 40 16 . Highest-Rated Ally 16 | . . . . 16 16 16 . Total Orders . | . . . . . . . . Ally Attacks 55 | . . . . . 52 3 . Total Damage 614 | . . . . . 557 57 . Kills 10 | . . . . . 10 . . Allies Corrupted . | . . . . . . . . Allies Melted . | . . . . . . . . Intel | -11 -10 -10 -10 -9 -8 -7 -6 ------- Run | Yrd Mat Min Exi Min Mat Fac Fac Active Infowar (turns) 5640 | 3 255 1342 783 1961 702 594 . Seismic 5632 | 3 255 1342 783 1961 702 586 . ECM 8 | . . . . . . 8 . Robot Analysis Total . | . . . . . . . . Derelict Logs Recovered 3 | . . 2 . 1 . . . Drone Launches . | . . . . . . . . Drone Recoveries . | . . . . . . . . Exploration | -11 -10 -10 -10 -9 -8 -7 -6 ------------- Run | Yrd Mat Min Exi Min Mat Fac Fac Turns Passed 5969 | 79 255 1342 783 1961 702 660 187 Spaces Moved 2243 | 45 119 519 325 338 356 395 146 Core 283 | 20 . . . 161 . 1 101 Treads 1165 | 25 119 519 325 177 . . . Legs 642 | . . . . . 356 286 . Wheels . | . . . . . . . . Hover . | . . . . . . . . Flight 153 | . . . . . . 108 45 Fastest Speed 26 | 50 160 240 240 240 120 26 35 Average Speed 240 | 114 205 240 240 566 164 120 70 Slowest Speed 900 | 160 240 240 240 900 330 190 500 Overloaded Moves . | . . . . . . . . Propulsion Burnouts . | . . . . . . . . Robots Hopped 1 | . . . . . . . 1 Potential Cave-ins . | . . . . . . . . Cave-ins Triggered . | . . . . . . . . Exploration Rate (%) 37 | 3 29 91 65 62 30 14 8 Regions Visited 7 Branch Regions 3 Pre-discovered Areas 4 | . . 2 1 1 . . . Known Exits Taken . | . . . . . . . . Unknown Exits Taken 7 | 1 1 1 1 1 1 1 . Scrap Searched 1 | . . 1 . . . . . Spaces Dug 2 | . . . . . . . 2 Terrain Destroyed 43 | . . 10 . . 7 22 4 Melee 2 | . . . . . . . 2 Projectile 31 | . . . . . 7 22 2 AOE 10 | . . 10 . . . . . Terrain Rammed . | . . . . . . . . Walls Destroyed . | . . . . . . . . Machines Disabled . | . . . . . . . . Actions | -11 -10 -10 -10 -9 -8 -7 -6 --------- Run | Yrd Mat Min Exi Min Mat Fac Fac Total 2575 | 64 127 553 329 359 452 482 209 Wait 6 | . . . . . . 4 2 Move 2234 | 44 118 518 324 337 355 394 144 Hop 1 | . . . . . . . 1 Pick Up 59 | 9 5 1 2 8 29 3 2 Fast Attach 7 | 1 . . . . 3 1 2 Attach 30 | 6 . 1 . 1 10 9 3 Detach 10 | . . . . . 4 5 1 Swap 8 | . 1 . . . 5 2 . Drop 43 | . 1 . 1 . 29 11 1 Fire 131 | 4 2 31 . 12 17 50 15 Melee 2 | . . . . . . . 2 Ram 37 | . . . . 1 . . 36 Kick 2 | . . . . . . 2 . Crush 2 | . . 2 . . . . . Escape Stasis . | . . . . . . . . Rewire 3 | . . . 2 . . 1 . Trap . | . . . . . . . . Miscellaneous . | . . . . . . . . Route ------- -11/Scrapyard -10/Materials -10/Mines (discovered 3 exits: [*Mat] / *Exi / [*Sub]) -10/Exiles (discovered 2 exits: *Min x2) -9/Mines -8/Materials -7/Factory -6/Factory History --------- Turn | Location | Event 2 | -11/Scrapyard | Met Revision 17 5 | -11/Scrapyard | Discovered new exit (range 16) 80 | -11/Scrapyard | Entered Materials 294 | -10/Materials | Discovered new exit (range 16) 301 | -10/Materials | Build established: Mutant 335 | -10/Materials | Entered Mines 336 | -10/Mines | Learned location of Storage (-8) 439 | -10/Mines | Discovered new exit (range 3) 737 | -10/Mines | Learned location of Zion (-6) 1383 | -10/Mines | Learned Materials trap positions 1402 | -10/Mines | Discovered new exit (range 7) 1668 | -10/Mines | Deemed a non-threat by the Exiles lab entrance 1668 | -10/Mines | Discovered new exit (range 5) 1677 | -10/Mines | Entered Exiles 1677 | -10/Exiles | Found Exiles lab destroyed 1730 | -10/Exiles | Discovered new exit (range 14) 2030 | -10/Exiles | Opened EX-Vault 2042 | -10/Exiles | Found Firepult 2438 | -10/Exiles | Discovered new exit (range 10) 2460 | -10/Exiles | Entered Mines 2487 | -9/Mines | Met a Derelict bent on vengeance 2963 | -9/Mines | Met a Derelict who couldn't figure out how to use a Trap Extractor 3248 | -9/Mines | Received a Rocket Launcher from a helpful Derelict 4088 | -9/Mines | Assisted by bots powering up and referring to "LRC-V3" 4376 | -9/Mines | Discovered new exit (range 5) 4421 | -9/Mines | Entered Materials 4421 | -8/Materials | Accompanied by 3 allies 4421 | -8/Materials | Evolved 4 slots: Propulsion x1, Utility x3 4422 | -8/Materials | Loaded intel: 18 trap records 4841 | -8/Materials | Build established: Scavenger-Mutant 5000 | -8/Materials | Discovered new exit (range 14) 5123 | -8/Materials | Entered Factory 5123 | -7/Factory | Accompanied by 1 ally 5123 | -7/Factory | Evolved 2 slots: Propulsion x1, Utility x1 5286 | -7/Factory | P-60 Hacker assimilated allied Trooper 2b 5697 | -7/Factory | Lost 3 parts (2n1u) 5777 | -7/Factory | Discovered new exit (range 10) 5783 | -7/Factory | Entered another Factory area 5783 | -6/Factory | Evolved 2 slots: Utility x1, Weapon x1 5814 | -6/Factory | Lost 8 parts (1p4n3u) 5843 | -6/Factory | Core integrity fell below 50% 5923 | -6/Factory | Core integrity fell below 20% 5967 | -6/Factory | Spotted B-75 Beast 5970 | -6/Factory | Destroyed by B-75 Beast via exploding Fusion Modulator Last Messages --------------- Flak Gun, Imp. Light Armor Plating, Imp. Heat Sink. 05924_ Slammed into Y-54 Guardian. 05925_ System corrupted: Substantial component data lost. 05925_ Slammed into Y-54 Guardian. 05925_ Penetrated by Slug. 05925_ Y-54 Guardian destroyed. 05926_ Acquired 74 matter. 05933_ K-01 Serf collects debris. 05941_ O-16 Technician: "IFF HANDSHAKE FAILED. SECURING TERMINAL." 05946_ Acquired Power Maul. 05948_ ALERT: Hostiles spotted, dispatching reinforcements to Terminal F002. 05964_ Connecting with Terminal... 05970_ Acquired Imp. Medium Treads. 05970_ Fusion Modulator explodes. 05970_ Knocked back. 05970_ Fusion Modulator explodes. Map ----- +----------------------------------------------------+ | ???????????????????????????????????????????????# | | ???????????????????????????????????? ??######### | | ???????????????????????????????????? ?# | | ????????????????????????????????????? # | | ?????????????????????????????????????? + | | ???????????????????????????????????????# """ " | | ???????????????????????????????????????# """ " | | ????????????????????????????????????????# """ " | | ????????????????????????????????????????# """ " | | ????????????????????????????????????????# | | ????????????????????????????????????????# | | ????????????????????????????????????????# | | ???????????????????????????##########?### ##### | | ???????????????????????????# ###"#+##+### | | ???????????????????????????# """ # ## | | ???????????????????????????# """ # ## | | ???????????????????????????# """ # """"" ## | | ???????????????????????????#[ [ # """"" ## | | ????????????##########+##### """ " """ ## | | ???????????? # """ "#= ## | | ???????????? # """ ""# ## | | ??????????? # ""# ## | | ????????????" + """ ""############ | | ???????????"" # """ ""#??????????# | | ???????????"" % # """ T"#??????????# | | ????????? @ # ""#??????????### | | ???????????"" # """ ""#????????????? | | ???????????"" !== # """ ""#????????????? | | ????????????" == # """ ""#????????????? | | ??????????? # "#????????????? | | ?????????? # ?????????????? | | ??????????? BB #########?????????????? | | ??????????? #BB;;;;;;;;# #?????????????????????? | | ??????????? ??# # ## ##? #?????????????????????? | | ??????????????##?##?###??? #?????????????????????? | | ?????????????????????????? ?????????????????????? | | ?????????????????????????? ?????????????????????? | | ??????????????????????????Y ?????????????????????? | | ?????????????????????????? ????????????????????? | | ?????????????????????????? ????????????????????? | | ??????????????????????????? #????????????????????? | | ?????????????????????????????????????????????????? | | ?????????????????????????????????????????????????? | | ?????????????????????????????????????????????????? | | ?????????????????????????????????????????????????? | | ?????????????????????????????????????????????????? | | ?????????????????????????????????????????????????? | | ?????????????????????????????????????????????????? | | ?????????????????????????????????????????????????? | | ?????????????????????????????????????????????????? | +----------------------------------------------------+ Best States ------------- Heat Dissipation 37 Energy Generation 15 Energy Capacity 250 Matter Stores 300 Matter Capacity 300 Sight Range 16 Terrain Scan Density 10 ECM Strength 2 Armor Coverage 225 Evasion (%) 64 Recoil Reduction 2 Kinecelleration 30 Offensive Hacking 10 Item Schematics ----------------- None Robot Schematics ------------------ None Fabricated ------------ Nothing Repaired ---------- Nothing Studied --------- Rocket Launcher | -8/Materials | Hacked Alien Tech Used ----------------- None Achievements -------------- Luggage Code Challenges ------------ None Game ------ Seed BeamReinforcedTorch Manual? 0 Play Time 00:44:15 Cumulative 25.0 hours Start 2026.07.29 @ 07:12:19 End 2026.07.31 @ 08:44:47 Sessions 5 Manual Loads 0 Difficulty Rogue Special Mode None Game No. 27 Rogue 24 Adventurer 3 Explorer 0 Win Type - Total 1 Types 1/0/0/0/0/0/0/0/0/0 Lore% 28 Gallery% 22 Achievement% 24 Wizard Run 0 Options --------- Layout 1 ASCII 0 Keyboard 0 Movement Mouse Keybinds 0 Fullscreen 1 Font 32/SmallcapsGlow Map View 50x35 Zoom Use 0% Tactical HUD 1 Map Filters NONE Filters NONE Steam 1 RUN: 6bffdbb3-316c-469c-93a6-e2db00856df7